Workbook

Sheet App.2-V_Revenue_Reconciliation
O1: File Number: | P1: EB-2014-0101
O2: Exhibit:
O3: Tab:
O4: Schedule:
O5: Page:
O7: Date:
A9: Appendix 2-V
A10: Revenue Reconciliation 2015
A12: Rate Class | B12: Customers/ Connections | C12: Number of Customers/Connections | F12: Test Year Consumption | H12: Proposed Rates | K12: Revenues at Proposed Rates | M12: Class Specific Revenue Requirement | N12: Transformer Allowance Credit | O12: Total | P12: Difference
C13: Start of Test Year | D13: End of Test Year | E13: Average | F13: kWh | G13: kW | H13: Monthly Service Charge | I13: Volumetric
I14: kWh | J14: kW
A16: Residential | B16: Customers | C16: 50202.5 | D16: 51751.5 | E16: =IF(SUM(C16:D16)=0,0,AVERAGE(C16:D16)) -> 50977 | F16: 488310441.8 | H16: 10.5 | I16: 0.0132 | K16: =H16*E16*12+I16*F16+J16*G16 -> 12868799.83 | M16: 12845602.6 | O16: =SUM(M16:N16) -> 12845602.6 | P16: =O16-K16 -> -23197.23657
A17: GS Less Than 50 KW | B17: Customers | C17: 3952.5 | D17: 4051.5 | E17: 4002 | F17: 134064266.1 | H17: 15.21 | I17: 0.0147 | K17: =H17*E17*12+I17*F17+J17*G17 -> 2701189.752 | M17: 2706175.133 | O17: 2706175.133 | P17: 4985.380709
A18: GS 50 To 999 KW | B18: Customers | C18: 502.5 | D18: 511.5 | E18: 507 | G18: 851954.0509 | H18: 48.76 | J18: 4.1839 | K18: 3861146.394 | M18: 3794693.906 | N18: 66477.51505 | O18: 3861171.422 | P18: 25.02785195
A19: GS Intermediate 1,000 To 4,999 KW | B19: Customers | C19: 11 | D19: 13 | E19: 12 | G19: 195333.2102 | H19: 1024.63 | J19: 2.2649 | K19: 589956.9079 | M19: 480277.7435 | N19: 109679.6172 | O19: 589957.3607 | P19: 0.45276824
A20: Large Use | B20: Customers | C20: 1 | D20: 1 | E20: 1 | G20: 96450.28012 | H20: 7812.41 | J20: 1.9726 | K20: 284006.7426 | M20: 226135.5399 | N20: 57870.53203 | O20: 284006.0719 | P20: -0.6706622718
A21: Street Lighting | B21: Connections | C21: 12464.5 | D21: 12955.5 | E21: 12710 | G21: 23911.67371 | H21: 1.65 | J21: 25.4916 | K21: 861204.8217 | M21: 861202.3486 | O21: 861202.3486 | P21: -2.473050872
A22: Sentinel Lighting | B22: Connections | C22: 24 | D22: 22 | E22: 23 | G22: 100.1588962 | H22: 4.91 | J22: 7.0133 | K22: 2057.604387 | M22: 2070.63458 | O22: 2070.63458 | P22: 13.03019312
A23: Unmetered Scattered Load | B23: Connections | C23: 295.5 | D23: 296.5 | E23: 296 | F23: 2686537.314 | H23: 4.07 | I23: 0.0166 | K23: 59053.15941 | M23: 59028.18695 | O23: 59028.18695 | P23: -24.97246357
E24: 0 | K24: 0 | O24: 0 | P24: 0
E25: 0 | K25: 0 | O25: 0 | P25: 0
A27: Total | K27: =SUM(K16:K25) -> 21227415.21 | M27: =SUM(M16:M25) -> 20975186.09 | N27: =SUM(N16:N25) -> 234027.6642 | O27: =M27+N27 -> 21209213.75 | P27: =O27-K27 -> -18201.46122
A30: Appendix 2-V
A31: Revenue Reconciliation 2016
A33: Rate Class | B33: Customers/ Connections | C33: Number of Customers/Connections | F33: Test Year Consumption | H33: Proposed Rates | K33: Revenues at Proposed Rates | M33: Class Specific Revenue Requirement | N33: Transformer Allowance Credit | O33: Total | P33: Difference
C34: Start of Test Year | D34: End of Test Year | E34: Average | F34: kWh | G34: kW | H34: Monthly Service Charge | I34: Volumetric
I35: kWh | J35: kW
A37: Residential | B37: Customers | C37: ='App.2-V_Revenue_Reconciliation'!D16 -> 51751.5 | D37: 51732.5 | E37: =IF(SUM(C37:D37)=0,0,AVERAGE(C37:D37)) -> 51742 | F37: 491380160.9 | H37: 11.21308243 | I37: 0.01416875997 | K37: =H37*E37*12+I37*F37+J37*G37 -> 13924495.29 | M37: 13924495.11 | O37: =SUM(M37:N37) -> 13924495.11 | P37: =O37-K37 -> -0.1812583208
A38: GS Less Than 50 KW | B38: Customers | C38: ='App.2-V_Revenue_Reconciliation'!D17 -> 4051.5 | D38: 4072.5 | E38: 4062 | F38: 134854491.6 | H38: 16.0223601 | I38: 0.01566008254 | K38: 2892826.391 | M38: 2892921.191 | O38: 2892921.191 | P38: 94.80083651
A39: GS 50 To 999 KW | B39: Customers | C39: ='App.2-V_Revenue_Reconciliation'!D18 -> 511.5 | D39: 518.5 | E39: 515 | G39: 860398.4777 | H39: 52.2046381 | J39: 4.473958205 | K39: 4172011.492 | M39: 4104624.481 | N39: 67136.42912 | O39: 4171760.91 | P39: -250.5822629
A40: GS Intermediate 1,000 To 4,999 KW | B40: Customers | C40: ='App.2-V_Revenue_Reconciliation'!D19 -> 13 | D40: 11 | E40: 12 | G40: 194669.6935 | H40: 1097.014732 | J40: 2.385236263 | K40: 622303.3337 | M40: 512996.2813 | N40: 109307.0525 | O40: 622303.3337 | P40: 0
A41: Large Use | B41: Customers | C41: ='App.2-V_Revenue_Reconciliation'!D20 -> 1 | D41: 1 | E41: 1 | G41: 96497.82792 | H41: 8347.424716 | J41: 2.066599058 | K41: 299591.4169 | M41: 241692.356 | N41: 57899.06089 | O41: 299591.4169 | P41: 0
A42: Street Lighting | B42: Connections | C42: ='App.2-V_Revenue_Reconciliation'!D21 -> 12955.5 | D42: 12964.5 | E42: 12960 | G42: 14599.31652 | H42: 1.829126071 | J42: 28.25900009 | K42: 697027.7733 | M42: 697028.2838 | O42: 697028.2838 | P42: 0.5104266769
A43: Sentinel Lighting | B43: Connections | C43: ='App.2-V_Revenue_Reconciliation'!D22 -> 22 | D43: 22 | E43: 22 | G43: 96.10650037 | H43: 5.256865731 | J43: 7.508752838 | K43: 2109.45251 | M43: 2138.945218 | O43: 2138.945218 | P43: 29.49270726
A44: Unmetered Scattered Load | B44: Connections | C44: ='App.2-V_Revenue_Reconciliation'!D23 -> 296.5 | D44: 295.5 | E44: 296 | F44: 2667193.464 | H44: 4.35752414 | I44: 0.01777270288 | K44: 62881.1627 | M44: 62888.52811 | O44: 62888.52811 | P44: 7.365412939
E45: 0 | K45: 0 | O45: 0 | P45: 0
E46: 0 | K46: 0 | O46: 0 | P46: 0
A48: Total | K48: =SUM(K37:K46) -> 22673246.31 | M48: =SUM(M37:M46) -> 22438785.17 | N48: =SUM(N37:N46) -> 234342.5425 | O48: =M48+N48 -> 22673127.71 | P48: =O48-K48 -> -118.5941378
A51: Appendix 2-V
A52: Revenue Reconciliation 2017
A54: Rate Class | B54: Customers/ Connections | C54: Number of Customers/Connections | F54: Test Year Consumption | H54: Proposed Rates | K54: Revenues at Proposed Rates | M54: Class Specific Revenue Requirement | N54: Transformer Allowance Credit | O54: Total | P54: Difference
C55: Start of Test Year | D55: End of Test Year | E55: Average | F55: kWh | G55: kW | H55: Monthly Service Charge | I55: Volumetric
I56: kWh | J56: kW
A58: Residential | B58: Customers | C58: ='App.2-V_Revenue_Reconciliation'!D37 -> 51732.5 | D58: 53303.5 | E58: =IF(SUM(C58:D58)=0,0,AVERAGE(C58:D58)) -> 52518 | F58: 492297000.5 | H58: 14.2217282 | I58: 0.01092363032 | K58: =H58*E58*12+I58*F58+J58*G58 -> 14340431.1 | M58: 14340454.51 | O58: =SUM(M58:N58) -> 14340454.51 | P58: =O58-K58 -> 23.40381183
A59: GS Less Than 50 KW | B59: Customers | C59: ='App.2-V_Revenue_Reconciliation'!D38 -> 4072.5 | D59: 4173.5 | E59: 4123 | F59: 135063742 | H59: 16.24016476 | I59: 0.01608588124 | K59: 2976117.706 | M59: 2976190.841 | O59: 2976190.841 | P59: 73.13561407
A60: GS 50 To 999 KW | B60: Customers | C60: ='App.2-V_Revenue_Reconciliation'!D39 -> 518.5 | D60: 525.5 | E60: 522 | G60: 865544.3799 | H60: 53.33 | J60: 4.569078844 | K60: 4288799.635 | M60: 4221453.661 | N60: 67537.96109 | O60: 4288991.623 | P60: 191.988
A61: GS Intermediate 1,000 To 4,999 KW | B61: Customers | C61: ='App.2-V_Revenue_Reconciliation'!D40 -> 11 | D61: 13 | E61: 12 | G61: 193285.7667 | H61: 1120.738469 | J61: 2.424646866 | K61: 630036.068 | M61: 521506.0905 | N61: 108529.9774 | O61: 630036.068 | P61: 0
A62: Large Use | B62: Customers | C62: ='App.2-V_Revenue_Reconciliation'!D41 -> 1 | D62: 1 | E62: 1 | G62: 96705.67747 | H62: 8527.975778 | J62: 2.098322667 | K62: 305255.4244 | M62: 247231.653 | N62: 58023.7714 | O62: 305255.4244 | P62: 0
A63: Street Lighting | B63: Connections | C63: ='App.2-V_Revenue_Reconciliation'!D42 -> 12964.5 | D63: 13465.5 | E63: 13215 | G63: 13528.41922 | H63: 1.921138029 | J63: 29.66636042 | K63: 705993.0292 | M63: 705995.8862 | O63: 705995.8862 | P63: 2.857029228
A64: Sentinel Lighting | B64: Connections | C64: ='App.2-V_Revenue_Reconciliation'!D43 -> 22 | D64: 22 | E64: 22 | G64: 92.37115747 | H64: 5.373774483 | J64: 7.671216319 | K64: 2127.275594 | M64: 2110.405292 | O64: 2110.405292 | P64: -16.87030206
A65: Unmetered Scattered Load | B65: Connections | C65: ='App.2-V_Revenue_Reconciliation'!D44 -> 295.5 | D65: 296.5 | E65: 296 | F65: 2652384.911 | H65: 4.452648632 | I65: 0.01817824442 | K65: 64031.50914 | M65: 64056.18422 | O65: 64056.18422 | P65: 24.67508308
E66: 0 | K66: 0 | O66: 0 | P66: 0
E67: 0 | K67: 0 | O67: 0 | P67: 0
A69: Total | K69: =SUM(K58:K67) -> 23312791.75 | M69: =SUM(M58:M67) -> 23078999.23 | N69: =SUM(N58:N67) -> 234091.7099 | O69: =M69+N69 -> 23313090.94 | P69: =O69-K69 -> 299.1892361
A72: Appendix 2-V
A73: Revenue Reconciliation 2018
A75: Rate Class | B75: Customers/ Connections | C75: Number of Customers/Connections | F75: Test Year Consumption | H75: Proposed Rates | K75: Revenues at Proposed Rates | M75: Class Specific Revenue Requirement | N75: Transformer Allowance Credit | O75: Total | P75: Difference
C76: Start of Test Year | D76: End of Test Year | E76: Average | F76: kWh | G76: kW | H76: Monthly Service Charge | I76: Volumetric
I77: kWh | J77: kW
A79: Residential | B79: Customers | C79: ='App.2-V_Revenue_Reconciliation'!D58 -> 53303.5 | D79: 54322.5 | E79: =IF(SUM(C79:D79)=0,0,AVERAGE(C79:D79)) -> 53813 | F79: 480011939.4 | H79: 17.35487159 | I79: 0.007782431544 | K79: =H79*E79*12+I79*F79+J79*G79 -> 14942672.52 | M79: 14942640.23 | O79: =SUM(M79:N79) -> 14942640.23 | P79: =O79-K79 -> -32.28264882
A80: GS Less Than 50 KW | B80: Customers | C80: ='App.2-V_Revenue_Reconciliation'!D59 -> 4173.5 | D80: 4268.5 | E80: 4221 | F80: 129585178.2 | H80: 16.07149867 | I80: 0.01698525758 | K80: 3015091.181 | M80: 3015120.042 | O80: 3015120.042 | P80: 28.86055395
A81: GS 50 To 999 KW | B81: Customers | C81: ='App.2-V_Revenue_Reconciliation'!D60 -> 525.5 | D81: 526.5 | E81: 526 | G81: 834069.226 | H81: 55.27663219 | J81: 4.733031417 | K81: 4296581.953 | M81: 4231367.317 | N81: 65081.97181 | O81: 4296449.289 | P81: -132.6639172
A82: GS Intermediate 1,000 To 4,999 KW | B82: Customers | C82: ='App.2-V_Revenue_Reconciliation'!D61 -> 13 | D82: 13 | E82: 13 | G82: 167714.0035 | H82: 1161.648842 | J82: 2.492606192 | K82: 599262.1829 | M82: 507878.7104 | N82: 94171.42979 | O82: 602050.1402 | P82: 2787.957221
A83: Large Use | B83: Customers | C83: ='App.2-V_Revenue_Reconciliation'!D62 -> 1 | D83: 1 | E83: 1 | G83: 90488.37211 | H83: 8839.265212 | J83: 2.152990262 | K83: 300891.7665 | M83: 246598.4018 | N83: 54293.36472 | O83: 300891.7665 | P83: 0
A84: Street Lighting | B84: Connections | C84: ='App.2-V_Revenue_Reconciliation'!D63 -> 13465.5 | D84: 13478.5 | E84: 13472 | G84: 13345.42241 | H84: 1.990083139 | J84: 30.7492721 | K84: 732086.8255 | M84: 732092.05 | O84: 732092.05 | P84: 5.224517149
A85: Sentinel Lighting | B85: Connections | C85: ='App.2-V_Revenue_Reconciliation'!D64 -> 22 | D85: 24 | E85: 23 | G85: 96.76818633 | H85: 5.566013779 | J85: 7.951211341 | K85: 2305.644104 | M85: 2285.390097 | O85: 2285.390097 | P85: -20.25400633
A86: Unmetered Scattered Load | B86: Connections | C86: ='App.2-V_Revenue_Reconciliation'!D65 -> 296.5 | D86: 245.5 | E86: 271 | F86: 2612658.59 | H86: 4.488704861 | I86: 0.01835829853 | K86: 62561.23456 | M86: 62548.29595 | O86: 62548.29595 | P86: -12.93861236
E87: 0 | K87: 0 | O87: 0 | P87: 0
E88: 0 | K88: 0 | O88: 0 | P88: 0
A90: Total | K90: =SUM(K79:K88) -> 23951453.3 | M90: =SUM(M79:M88) -> 23740530.44 | N90: =SUM(N79:N88) -> 213546.7663 | O90: =M90+N90 -> 23954077.21 | P90: =O90-K90 -> 2623.903108
A93: Appendix 2-V
A94: Revenue Reconciliation 2019
A96: Rate Class | B96: Customers/ Connections | C96: Number of Customers/Connections | F96: Test Year Consumption | H96: Proposed Rates | K96: Revenues at Proposed Rates | M96: Class Specific Revenue Requirement | N96: Transformer Allowance Credit | O96: Total | P96: Difference
C97: Start of Test Year | D97: End of Test Year | E97: Average | F97: kWh | G97: kW | H97: Monthly Service Charge | I97: Volumetric
I98: kWh | J98: kW
A100: Residential | B100: Customers | C100: ='App.2-V_Revenue_Reconciliation'!D79 -> 54322.5 | D100: 55241.5 | E100: =IF(SUM(C100:D100)=0,0,AVERAGE(C100:D100)) -> 54782 | F100: 478548339.5 | H100: 20.9748058 | I100: 0.00411613188 | K100: =H100*E100*12+I100*F100+J100*G100 -> 15758269.81 | M100: 15758144.61 | O100: =SUM(M100:N100) -> 15758144.61 | P100: =O100-K100 -> -125.2010655
A101: GS Less Than 50 KW | B101: Customers | C101: ='App.2-V_Revenue_Reconciliation'!D80 -> 4268.5 | D101: 4325.5 | E101: 4297 | F101: 129015225.8 | H101: 16.47097409 | I101: 0.01779898305 | K101: 3145649.124 | M101: 3145670.981 | O101: 3145670.981 | P101: 21.85715643
A102: GS 50 To 999 KW | B102: Customers | C102: ='App.2-V_Revenue_Reconciliation'!D81 -> 526.5 | D102: 543.5 | E102: 535 | G102: 835118.2378 | H102: 57.54389846 | J102: 4.923636408 | K102: 4481250.389 | M102: 4416293.721 | N102: 65163.82564 | O102: 4481457.547 | P102: 207.1580345
A103: GS Intermediate 1,000 To 4,999 KW | B103: Customers | C103: ='App.2-V_Revenue_Reconciliation'!D82 -> 13 | D103: 15 | E103: 14 | G103: 169067.8437 | H103: 1209.223402 | J103: 2.571684915 | K103: 637938.7547 | M103: 545909.2797 | N103: 94931.61122 | O103: 640840.8909 | P103: 2902.136164
A104: Large Use | B104: Customers | C104: ='App.2-V_Revenue_Reconciliation'!D83 -> 1 | D104: 1 | E104: 1 | G104: 88370.10261 | H104: 9201.267282 | J104: 2.216600321 | K104: 306296.4052 | M104: 253274.0102 | N104: 53022.39503 | O104: 306296.4052 | P104: 0
A105: Street Lighting | B105: Connections | C105: ='App.2-V_Revenue_Reconciliation'!D84 -> 13478.5 | D105: 13995.5 | E105: 13737 | G105: 13901.83788 | H105: 2.071497068 | J105: 32.00858533 | K105: 786452.0267 | M105: 786456.8882 | O105: 786456.8882 | P105: 4.861529461
A106: Sentinel Lighting | B106: Connections | C106: ='App.2-V_Revenue_Reconciliation'!D85 -> 24 | D106: 20 | E106: 22 | G106: 93.03655709 | H106: 5.798109885 | J106: 8.276827884 | K106: 2300.748579 | M106: 2305.752882 | O106: 2305.752882 | P106: 5.004302245
A107: Unmetered Scattered Load | B107: Connections | C107: ='App.2-V_Revenue_Reconciliation'!D86 -> 245.5 | D107: 292.5 | E107: 269 | F107: 2660941.398 | H107: 4.67388032 | I107: 0.01915354073 | K107: 66053.73512 | M107: 66076.16987 | O107: 66076.16987 | P107: 22.43475489
E108: 0 | K108: 0 | O108: 0 | P108: 0
E109: 0 | K109: 0 | O109: 0 | P109: 0
A111: Total | K111: =SUM(K100:K109) -> 25184210.99 | M111: =SUM(M100:M109) -> 24974131.41 | N111: =SUM(N100:N109) -> 213117.8319 | O111: =M111+N111 -> 25187249.24 | P111: =O111-K111 -> 3038.250876
A114: Note
A115: 1 The class specific revenue requirements in column N must be the amounts used in the final rate design process. The total of column N should equate to the proposed base revenue requirement.
A116: 2 Rates should be entered with the number of decimal places that will show on the Tariff of Rates and Charges.
